bitfinex/quotes_SOLUSD_20260115
["timestamp","ask_amount","ask_price","bid_price","bid_amount"]
[1768460655814,0.71805672,144.15,144.12,2.58700534]
[1768460657191,0.81805672,144.16,144.13,2.58700534]
[1768460659211,0.1,144.16,144.13,2.58700534]
[1768460660122,0.81805672,144.16,144.13,2.58700534]
[1768460660815,0.1,144.16,144.14,2.58700534]
[1768460661020,0.76873588,144.16,144.14,2.58700534]
[1768460661229,0.1,144.16,144.14,2.58700534]
[1768460662021,0.1,144.16,144.15,2.58700534]
[1768460662689,0.1,144.16,144.13,6.93796854]
[1768460662991,0.1,144.16,144.15,2.58700534]
[1768460663193,0.66873588,144.17,144.15,2.58700534]
[1768460664216,0.66873588,144.17,144.13,6.93796854]
[1768460664414,0.71752176,144.16,144.12,6.93854808]
[1768460664627,0.71752176,144.16,144.13,2.58700534]
[1768460670025,0.71752176,144.16,144.11,81.07897932]
[1768460670202,0.71752176,144.16,144.13,2.58700534]
[1768460671440,0.71752176,144.16,144.11,68.43897932]
[1768460671619,0.71752176,144.16,144.12,2.58700534]
[1768460672227,0.71752176,144.15,144.11,61.5]
[1768460672435,0.71752176,144.14,144.11,61.5]
[1768460672641,0.71752176,144.14,144.09,9.52695976]
[1768460672642,0.71752176,144.13,144.09,9.52695976]
[1768460673138,0.71752176,144.11,144.08,19.58040385]
[1768460673314,2.58700534,144.14,144.08,22.22740918]
[1768460673623,9.52487487,144.14,144.08,19.64040384]
[1768460673824,9.52487487,144.14,144.08,22.22740918]
[1768460674220,2.58700534,144.13,144.08,19.64040384]
[1768460674412,2.58700534,144.13,144.08,22.22740918]
[1768460675231,0.71752176,144.12,144.08,22.22740918]
[1768460676237,0.71752176,144.13,144.1,0.05999999]
[1768460677026,0.71752176,144.13,144.09,2.64700533]
[1768460677634,0.71752176,144.13,144.09,9.58684472]
[1768460678934,0.71752176,144.13,144.1,0.05999999]
[1768460679244,0.71752176,144.15,144.12,0.05999999]
[1768460679409,0.71752176,144.15,144.12,2.61700533]
[1768460679616,0.71752176,144.15,144.12,0.02999999]
[1768460680346,0.71752176,144.15,144.1,2.58700534]
[1768460681346,0.71752176,144.15,144.11,0.02999999]
[1768460682830,0.71752176,144.15,144.12,0.02999999]
[1768460684124,3.3045271,144.15,144.11,0.02999999]
[1768460684439,0.71752176,144.14,144.11,0.02999999]
[1768460684813,3.3045271,144.15,144.11,0.02999999]
[1768460688442,0.71752176,144.15,144.11,0.02999999]
[1768460688622,3.3045271,144.15,144.11,0.02999999]
[1768460688822,0.71752176,144.15,144.11,0.02999999]
[1768460689022,0.71752176,144.15,144.12,0.02999999]
[1768460691720,0.71752176,144.15,144.12,4.06917021]
[1768460694638,0.71752176,144.15,144.12,0.02999999]
[1768460694829,0.71752176,144.15,144.12,4.06917021]
[1768460695034,0.67985392,144.16,144.13,0.02999999]
[1768460696465,0.67985392,144.16,144.13,4.06917021]
[1768460697923,7.61631077,144.17,144.13,4.06917021]
[1768460698151,7.61631077,144.17,144.14,0.02999999]
[1768460699349,0.67985392,144.17,144.14,0.02999999]
[1768460699952,7.71578822,144.18,144.14,0.02999999]
[1768460700155,0.67985392,144.17,144.14,0.02999999]
[1768460700947,0.67985392,144.17,144.13,11.00734124]
[1768460703049,0.67985392,144.17,144.14,0.02999999]
[1768460703228,0.67985392,144.17,144.14,4.06917021]
[1768460703428,0.1,144.18,144.17,0.02999999]
[1768460703649,0.1,144.19,144.17,4.06917021]
[1768460704240,0.1,144.19,144.14,74.14]
[1768460704241,0.77985392,144.19,144.14,74.14]
[1768460704452,0.77985392,144.19,144.16,4.03917022]
[1768460705562,0.77985392,144.19,144.16,10.97556115]
[1768460705766,0.77985392,144.19,144.16,6.93639093]
[1768460705934,0.77985392,144.19,144.16,10.97556115]
[1768460707730,0.1,144.2,144.18,4.03917022]
[1768460709045,0.1,144.2,144.19,4.03917022]
[1768460709338,0.77985392,144.21,144.19,4.03917022]
[1768460709557,0.1,144.21,144.19,4.03917022]
[1768460709751,0.1,144.21,144.16,85.77823332]
[1768460709948,0.1,144.21,144.19,4.03917022]
[1768460710550,0.1,144.21,144.2,4.03917022]
[1768460711959,0.1,144.21,144.18,6.93577472]
[1768460712171,0.1,144.21,144.19,4.03917022]
[1768460715070,0.1,144.21,144.2,4.03917022]
[1768460716271,0.1,144.21,144.17,74.14]
[1768460716272,0.77985392,144.21,144.17,74.14]
[1768460716452,0.77985392,144.21,144.18,4.03917022]
[1768460716946,0.67985392,144.18,144.13,8.01401189]
[1768460717151,0.67985392,144.16,144.11,10.97801886]
[1768460717347,0.67985392,144.14,144.1,10.97870839]
[1768460717572,4.03917022,144.14,144.08,12.69999999]
[1768460717776,4.03917022,144.14,144.08,16.67917022]
[1768460717963,4.03917022,144.13,144.08,4.03917022]
[1768460718271,10.97748367,144.13,144.07,11.04012201]
[1768460719697,0.67985392,144.12,144.07,11.04012201]
[1768460722696,0.67985392,144.12,144.08,4.03917022]
[1768460723795,0.67985392,144.12,144.08,11.03948854]
[1768460723990,0.71928477,144.14,144.1,4.09917021]
[1768460724494,0.71928477,144.14,144.11,4.03917022]
[1768460725270,0.71928477,144.14,144.09,4.09917021]
[1768460726389,0.71928477,144.14,144.09,11.03916692]
[1768460729501,0.71928477,144.14,144.09,72.53916692]
[1768460730417,0.71928477,144.14,144.1,4.03917022]
[1768460733818,29.98085297,144.17,144.1,4.03917022]
[1768460733819,0.71928477,144.16,144.13,4.03917022]
[1768460736213,0.71928477,144.17,144.13,11.03725809]
[1768460740711,0.71928477,144.17,144.13,0.05999999]
[1768460741510,0.71928477,144.17,144.13,4.09917021]
[1768460742510,0.71928477,144.17,144.13,11.03734857]
[1768460742716,0.71928477,144.17,144.14,4.03917022]
[1768460743412,0.71928477,144.17,144.13,6.99817835]
[1768460743615,0.71928477,144.17,144.14,4.03917022]
[1768460743793,0.71928477,144.17,144.13,4.09917021]
[1768460746411,0.71928477,144.17,144.14,4.03917022]
[1768460746612,0.71928477,144.17,144.13,6.9979514]
[1768460746817,0.71928477,144.17,144.14,4.03917022]
[1768460748010,0.71928477,144.18,144.15,4.09917021]
[1768460749190,0.71928477,144.18,144.16,4.03917022]
[1768460749391,0.71928477,144.18,144.16,4.00917022]
[1768460750114,0.71928477,144.18,144.15,4.09917021]
[1768460750514,0.71928477,144.18,144.15,11.03634501]
[1768460750811,0.71928477,144.18,144.15,4.09917021]
[1768460751408,0.71928477,144.18,144.15,2.64352371]
[1768460756027,0.71928477,144.18,144.15,2.58352372]
[1768460758398,0.71928477,144.18,144.13,6.99818079]
[1768460758717,0.71928477,144.18,144.14,2.58352372]
[1768460759598,0.71928477,144.18,144.13,68.49818079]
[1768460759825,0.71928477,144.18,144.14,2.58352372]
[1768460760321,0.71928477,144.18,144.14,2.64352371]
[1768460761121,0.71928477,144.18,144.14,2.58352372]
[1768460761508,0.69597733,144.16,144.11,74.14]
[1768460761709,0.69597733,144.16,144.11,83.66261226]
[1768460762106,0.69597733,144.16,144.13,0.05999999]
[1768460762329,0.69597733,144.17,144.14,2.58352372]
[1768460762624,0.69597733,144.17,144.14,2.64352371]
[1768460762826,0.69597733,144.17,144.14,2.58352372]
[1768460763411,0.69597733,144.17,144.13,2.64352371]
[1768460765506,0.69597733,144.17,144.12,71.08177101]
[1768460765806,0.69597733,144.16,144.12,71.08177101]
[1768460766630,0.69597733,144.16,144.12,64.14352371]
[1768460767035,0.69597733,144.15,144.12,61.5]
[1768460767334,0.69597733,144.15,144.12,2.58352372]
[1768460768534,0.69597733,144.15,144.11,83.72255925]
[1768460770425,0.69597733,144.15,144.12,2.58352372]
[1768460770931,0.69597733,144.15,144.11,81.13903553]
[1768460771124,0.69597733,144.15,144.12,2.58352372]
[1768460771323,0.69597733,144.15,144.11,81.13903553]
[1768460771529,0.69597733,144.15,144.12,2.58352372]
[1768460771710,0.69597733,144.15,144.12,2.64352371]
[1768460785046,0.69597733,144.15,144.13,2.58352372]
[1768460791150,0.69597733,144.15,144.12,6.99864043]
[1768460791352,0.69597733,144.15,144.13,2.58352372]
[1768460792763,0.69597733,144.15,144.12,2.58352372]
[1768460793348,0.69597733,144.15,144.11,68.49902957]
[1768460793663,0.69597733,144.15,144.12,2.58352372]
[1768460794563,0.71873119,144.14,144.11,64.08352372]
[1768460795757,0.71873119,144.14,144.11,64.14352371]
[1768460796140,0.71873119,144.14,144.12,2.58352372]
[1768460798260,0.71873119,144.14,144.11,61.55999999]
[1768460798558,0.71873119,144.14,144.12,2.58352372]
[1768460800963,0.71873119,144.14,144.11,2.64352371]
[1768460801742,0.71873119,144.14,144.11,0.05999999]
[1768460801949,0.71873119,144.14,144.12,2.58352372]
[1768460802168,0.71873119,144.14,144.11,0.05999999]
[1768460802467,0.71873119,144.14,144.12,2.58352372]
[1768460803361,0.71873119,144.14,144.1,64.08352372]
[1768460804372,0.71873119,144.13,144.08,6.94040915]
[1768460804544,0.71873119,144.13,144.08,7.00040914]
[1768460804748,0.71873119,144.13,144.08,9.52393287]
[1768460805146,0.71873119,144.13,144.09,2.58352372]
[1768460807366,0.71873119,144.13,144.09,2.64352371]
[1768460807870,0.71873119,144.13,144.1,0.05999999]
[1768460808171,0.71873119,144.13,144.1,2.58352372]
[1768460809453,0.71873119,144.13,144.1,2.64352371]
[1768460809651,0.71873119,144.13,144.1,2.58352372]
[1768460811372,0.71873119,144.13,144.1,4.03970123]
[1768460812955,0.71873119,144.13,144.1,4.09970122]
[1768460814287,0.71873119,144.13,144.1,0.05999999]
[1768460814765,0.71873119,144.13,144.09,11.03954079]
[1768460817477,0.71873119,144.13,144.09,0.05999999]
[1768460817687,0.69304621,144.12,144.08,7.00043402]
[1768460819186,0.69304621,144.12,144.08,11.04013525]
[1768460822068,0.69304621,144.12,144.08,7.00043402]
[1768460824462,0.69304621,144.12,144.08,6.94043403]
[1768460826786,0.69304621,144.12,144.08,11.04013525]
[1768460827684,0.69304621,144.12,144.09,4.03970123]
[1768460828003,0.69304621,144.12,144.08,6.94043403]
[1768460828188,0.69304621,144.12,144.07,85.1805953]
[1768460829786,0.69304621,144.12,144.08,11.04008862]
[1768460831469,0.69304621,144.12,144.09,4.03970123]
[1768460832366,0.69304621,144.12,144.09,4.09970122]
[1768460833171,0.69304621,144.12,144.09,4.03970123]
[1768460837987,0.69304621,144.12,144.08,11.04008862]
[1768460840195,0.69304621,144.12,144.07,74.14]
[1768460840196,0.69304621,144.1,144.07,81.08097782]
[1768460840410,0.63304622,144.1,144.06,7.00137342]
[1768460840572,0.63304622,144.1,144.06,10.98107466]
[1768460840873,0.63304622,144.1,144.06,4.03970123]
[1768460841293,0.63304622,144.1,144.06,11.10111465]
[1768460842372,0.63304622,144.1,144.06,6.94141344]
[1768460842685,0.63304622,144.1,144.06,10.98111467]
[1768460844785,0.63304622,144.1,144.06,11.10111465]
[1768460845385,0.63304622,144.1,144.06,7.06141342]
[1768460845784,0.63304622,144.1,144.07,4.03970123]
[1768460851098,0.67873608,144.09,144.05,6.94186781]
[1768460851290,0.67873608,144.09,144.05,4.03970123]
[1768460855496,0.67873608,144.08,144.05,4.03970123]
[1768460856124,0.67873608,144.1,144.07,0.11999998]
[1768460856406,0.67873608,144.1,144.07,4.15970121]
[1768460856582,0.67873608,144.1,144.07,4.03970123]
[1768460859010,0.67873608,144.1,144.06,4.15970121]
[1768460859702,0.67873608,144.09,144.06,4.15970121]
[1768460860007,0.67873608,144.09,144.05,11.10173374]
[1768460860207,0.67873608,144.09,144.06,4.03970123]
[1768460861605,0.67873608,144.08,144.05,4.15970121]
[1768460862111,0.67873608,144.08,144.04,61.5]
[1768460862318,0.67873608,144.08,144.04,4.03970123]
[1768460863699,0.67873608,144.08,144.05,4.03970123]
[1768460868016,0.67873608,144.08,144.04,0.11999998]
[1768460868323,0.67873608,144.08,144.05,4.03970123]
[1768460871325,0.67873608,144.08,144.05,2.58749023]
[1768460874235,0.67873608,144.08,144.04,9.64999402]
[1768460876019,0.67873608,144.08,144.05,2.58749023]
[1768460878044,0.67873608,144.08,144.04,7.06250379]
[1768460878238,0.67873608,144.08,144.05,2.58749023]
[1768460878837,0.67873608,144.08,144.05,2.70749021]
[1768460879934,0.67873608,144.08,144.05,2.58749023]
[1768460880631,0.67873608,144.08,144.04,7.06250379]
[1768460880830,0.67873608,144.08,144.05,2.58749023]
[1768460881735,0.67873608,144.08,144.05,9.64930163]
[1768460882033,0.69570709,144.11,144.08,0.11999998]
[1768460882217,0.69570709,144.13,144.1,2.70749021]
[1768460882536,0.69570709,144.13,144.11,2.58749023]
[1768460882719,0.69570709,144.15,144.11,2.58749023]
[1768460882918,0.69570709,144.13,144.11,2.58749023]
[1768460884932,0.69570709,144.13,144.09,7.05987334]
[1768460885238,0.69570709,144.13,144.11,2.58749023]
[1768460888245,0.69570709,144.13,144.12,2.58749023]
[1768460889545,0.69570709,144.13,144.11,2.58749023]
[1768460891817,0.69570709,144.13,144.12,2.58749023]
[1768460892147,0.69570709,144.14,144.12,2.58749023]
[1768460894745,0.69570709,144.14,144.13,2.58749023]
[1768460895226,0.69570709,144.14,144.12,2.58749023]
[1768460895429,0.69570709,144.14,144.13,2.58749023]
[1768460895742,0.69570709,144.16,144.13,2.70749021]
[1768460895951,0.69570709,144.16,144.15,2.58749023]
[1768460896450,0.69570709,144.16,144.14,2.58749023]
[1768460896926,0.69570709,144.16,144.13,0.11999998]
[1768460897128,0.69570709,144.16,144.12,0.11999998]
[1768460897461,0.69570709,144.16,144.14,2.58749023]
[1768460898333,0.69570709,144.16,144.13,2.58749023]
[1768460898658,0.69570709,144.16,144.14,2.58749023]
[1768460899019,0.69570709,144.16,144.15,2.58749023]
[1768460900253,0.69570709,144.16,144.14,2.58749023]
[1768460902044,0.67469808,144.15,144.12,0.68672458]
[1768460902253,0.67469808,144.15,144.13,2.58749023]
[1768460902649,0.67469808,144.15,144.12,0.68672458]
[1768460902854,0.67469808,144.15,144.13,2.58749023]
[1768460904157,0.67469808,144.15,144.13,3.30347553]
[1768460904356,0.69577198,144.17,144.14,3.30347553]
[1768460907041,0.69577198,144.16,144.14,2.58749023]
[1768460909554,0.69577198,144.16,144.13,2.58749023]
[1768460909946,0.69577198,144.16,144.13,3.30347553]
[1768460910663,0.69577198,144.15,144.13,2.58749023]
[1768460911551,0.69577198,144.14,144.12,3.30347553]
[1768460911749,0.69577198,144.14,144.12,2.58749023]
[1768460912357,7.63267637,144.16,144.13,3.30347553]
[1768460912653,7.63218072,144.17,144.14,3.30347553]
[1768460912852,7.63218072,144.17,144.15,2.58749023]
[1768460913050,17.34046501,144.18,144.16,2.58749023]
[1768460913051,7.63168269,144.18,144.16,2.58749023]
[1768460913758,0.69577198,144.17,144.15,2.58749023]
[1768460913966,0.69577198,144.18,144.16,2.58749023]
[1768460914661,0.69577198,144.18,144.15,3.30347553]
[1768460917269,7.63160407,144.18,144.15,3.30347553]
[1768460918752,0.69577198,144.17,144.15,2.58749023]
[1768460918951,0.69577198,144.17,144.14,3.30347553]
[1768460919174,7.6322661,144.17,144.14,3.30347553]
[1768460920254,7.6322661,144.17,144.14,0.7159853]
[1768460922370,7.6322661,144.17,144.14,3.30347553]
[1768460926673,0.69577198,144.18,144.15,0.7159853]
[1768460929273,0.69577198,144.17,144.15,0.7159853]
[1768460931456,7.63205218,144.17,144.15,0.7159853]
[1768460933096,7.63205218,144.17,144.14,4.03749591]
[1768460933283,7.63205218,144.17,144.14,4.72551611]
[1768460933786,7.63205218,144.17,144.14,0.6880202]
[1768460937592,0.67913828,144.19,144.15,0.6880202]
[1768460937794,5.83582062,144.18,144.15,0.6880202]
[1768460937976,0.67913828,144.18,144.15,0.6880202]
[1768460938587,6.9362558,144.17,144.15,0.6880202]
[1768460941067,0.67913828,144.17,144.15,0.6880202]
[1768460941269,0.67913828,144.17,144.14,0.6880202]
[1768460943183,7.61545938,144.17,144.14,0.6880202]
[1768460943572,6.9363211,144.17,144.14,0.6880202]
[1768460943780,6.9363211,144.17,144.15,0.6880202]
[1768460944091,6.9359586,144.18,144.15,0.6880202]
[1768460944787,7.61509688,144.18,144.15,0.6880202]
[1768460944998,6.9359586,144.18,144.16,0.6880202]
[1768460951600,0.67913828,144.17,144.14,4.72551611]
[1768460952091,7.61545842,144.17,144.14,4.72551611]
[1768460954694,0.67913828,144.17,144.14,4.72540453]
[1768460958099,7.6151178,144.18,144.15,0.6880202]
[1768460958303,5.17203943,144.17,144.15,0.6880202]
[1768460958607,6.93597952,144.18,144.15,0.6880202]
[1768460958799,5.17206213,144.17,144.15,0.6880202]
[1768460959106,6.93597952,144.18,144.15,0.6880202]
[1768460959284,5.17262693,144.17,144.16,4.72540453]
[1768460959494,6.93545688,144.19,144.16,4.03738433]
[1768460959694,7.61459516,144.19,144.16,4.03738433]
[1768460960005,7.61459516,144.19,144.16,4.15738431]
[1768460963022,0.69385323,144.18,144.15,0.11999998]
[1768460963226,0.69385323,144.18,144.16,4.03738433]
[1768460965426,0.69385323,144.18,144.15,4.03738433]
[1768460968416,0.69385323,144.18,144.15,4.15738431]
[1768460969215,0.69385323,144.18,144.16,4.03738433]
[1768460976618,0.63385324,144.18,144.16,4.03738433]
[1768460978214,0.63385324,144.18,144.15,0.11999998]
[1768460978416,0.63385324,144.18,144.16,4.03738433]
[1768460981616,0.57385325,144.18,144.15,0.11999998]
[1768460981806,0.57385325,144.18,144.16,4.03738433]
[1768460987820,0.57385325,144.18,144.17,4.03738433]
[1768460990530,6.93481276,144.2,144.17,4.73547155]
[1768460990828,5.17480118,144.19,144.17,4.73547155]
[1768460991027,6.93481276,144.2,144.17,4.03738433]
[1768460991203,5.17487762,144.19,144.17,4.03738433]
[1768460991399,6.93481276,144.2,144.17,4.03738433]
[1768460991725,5.17487172,144.19,144.17,4.03738433]
[1768460991916,6.93481276,144.2,144.17,4.03738433]
[1768460992117,5.17486458,144.19,144.17,4.03738433]
[1768460992433,6.93481276,144.2,144.17,4.03738433]
[1768460992621,5.87294998,144.19,144.17,4.03738433]
[1768460992826,0.69800086,144.19,144.17,4.03738433]
[1768460993334,7.63337151,144.19,144.17,2.58306907]
[1768460994209,0.69800086,144.18,144.17,2.58306907]
[1768460994528,0.69800086,144.18,144.16,3.28115629]
[1768460994917,0.69800086,144.18,144.16,2.58306907]
[1768460995539,0.69800086,144.18,144.16,3.28115629]
[1768460997333,0.69800086,144.19,144.16,3.28115629]
[1768460997937,0.69800086,144.19,144.15,0.69808722]
[1768460998121,0.69800086,144.19,144.16,3.28115629]
[1768460998632,0.69800086,144.19,144.17,2.58306907]
[1768460999832,0.69800086,144.19,144.16,3.28115629]
[1768461005514,0.69800086,144.19,144.17,2.58306907]
[1768461005914,0.69800086,144.19,144.16,0.69808722]
[1768461006121,0.69800086,144.19,144.17,2.58306907]
[1768461006318,0.1,144.21,144.19,0.69808722]
[1768461006522,7.73168931,144.23,144.2,8.44035653]
[1768461006725,7.73168931,144.23,144.21,2.58306907]
[1768461006911,0.69800086,144.22,144.21,2.58306907]
[1768461007225,7.03368845,144.23,144.21,2.58306907]
[1768461007425,0.1,144.25,144.23,0.69808722]
[1768461007719,0.79800086,144.25,144.23,2.58306907]
[1768461007925,7.73042112,144.25,144.23,2.58306907]
[1768461008321,0.69800086,144.24,144.19,2.58306907]
[1768461009141,0.69800086,144.24,144.18,12.64]
[1768461009325,0.69800086,144.23,144.16,6.93644485]
[1768461009530,0.69800086,144.22,144.19,2.58306907]
[1768461009834,0.69800086,144.22,144.2,2.58306907]
[1768461010928,0.69800086,144.22,144.19,3.28115629]
[1768461012344,0.69800086,144.22,144.2,0.69808722]
[1768461015520,0.69800086,144.23,144.2,0.69808722]
[1768461015928,20.37050584,144.25,144.22,0.69808722]
[1768461016317,0.69800086,144.24,144.21,0.69808722]
[1768461016934,0.69800086,144.24,144.2,2.58306907]
[1768461017738,0.69800086,144.23,144.2,3.28115629]
[1768461019445,0.69800086,144.23,144.2,0.69808722]
[1768461019632,0.69800086,144.23,144.2,3.28115629]
[1768461020943,0.69800086,144.23,144.21,2.58306907]
[1768461021137,0.69800086,144.23,144.21,3.30355189]
[1768461022145,0.69977803,144.24,144.21,3.30355189]
[1768461025048,7.63271417,144.24,144.21,3.30355189]
[1768461029960,7.03260717,144.25,144.22,3.25445817]
[1768461030141,7.73108975,144.25,144.22,3.25445817]
[1768461030673,0.69848258,144.24,144.22,3.25445817]
[1768461030861,0.69848258,144.24,144.22,2.58306907]
[1768461033060,0.69848258,144.24,144.22,3.27306464]
[1768461033249,7.03260717,144.25,144.23,0.68999557]
[1768461036351,0.1,144.25,144.23,0.68999557]
[1768461036849,0.80201752,144.25,144.23,0.68999557]
[1768461039967,0.80201752,144.25,144.23,3.27306464]
[1768461040177,0.80201752,144.25,144.23,0.68999557]
[1768461045849,0.80201752,144.25,144.22,0.72299699]
[1768461048180,0.80201752,144.25,144.21,2.58306907]
[1768461048181,0.7028684,144.24,144.21,0.72299699]
[1768461052860,0.7028684,144.24,144.2,0.70764302]
[1768461054472,0.71138074,144.23,144.2,0.70764302]
[1768461054665,0.71138074,144.23,144.19,11.67697519]
[1768461054974,0.71138074,144.22,144.18,62.20764302]
[1768461055178,0.71138074,144.22,144.16,17.34163217]
[1768461055179,4.74561019,144.2,144.17,0.70764302]
[1768461055379,36.90541184,144.24,144.16,0.70764302]
[1768461055676,4.03422945,144.21,144.16,0.70764302]
[1768461055859,10.96874389,144.21,144.16,0.70764302]
[1768461056576,10.96874389,144.21,144.15,0.70764302]
[1768461056577,4.03422945,144.2,144.15,0.70764302]
[1768461057273,0.71138074,144.19,144.15,0.70764302]
[1768461057472,0.71138074,144.18,144.14,0.70764302]
[1768461062181,4.74561019,144.19,144.15,0.70764302]
[1768461062685,0.71138074,144.19,144.16,0.70764302]
[1768461063060,0.71138074,144.19,144.15,4.74187247]
[1768461063878,0.71138074,144.19,144.15,0.70764302]
[1768461064583,6.93484721,144.2,144.16,0.70764302]
[1768461064799,0.71138074,144.24,144.2,0.70764302]
[1768461065285,0.71138074,144.24,144.2,4.74187247]
[1768461065760,0.71138074,144.23,144.2,4.74187247]
[1768461066260,0.71138074,144.23,144.2,0.70764302]
[1768461067583,7.64478865,144.23,144.2,0.70764302]
[1768461068086,0.71138074,144.22,144.18,0.70764302]
[1768461068381,0.71138074,144.22,144.19,0.70764302]
[1768461068978,0.71138074,144.22,144.18,0.70764302]
[1768461070987,0.71138074,144.22,144.19,0.68816419]
[1768461071577,0.71138074,144.22,144.2,4.03422945]
[1768461072308,0.71138074,144.22,144.19,4.72239364]
[1768461072598,7.64535276,144.22,144.19,4.72239364]
[1768461074992,0.71138074,144.22,144.2,4.03422945]
[1768461078597,0.71138074,144.22,144.19,0.68816419]
[1768461078778,0.71138074,144.22,144.2,4.03422945]
[1768461081298,0.71138074,144.22,144.2,4.00422945]
[1768461081503,0.71138074,144.22,144.19,4.72239364]
[1768461081982,0.71138074,144.22,144.2,4.03422945]
[1768461087700,0.71138074,144.22,144.2,4.00422945]
[1768461092497,0.71138074,144.22,144.19,0.68816419]
[1768461092704,0.71138074,144.22,144.2,4.03422945]
[1768461096511,7.65655416,144.24,144.21,4.69018973]
[1768461097013,0.72353272,144.23,144.21,0.65596028]
[1768461097626,0.72353272,144.23,144.2,4.69018973]
[1768461098816,0.72353272,144.23,144.21,0.65596028]
[1768461098998,7.65655416,144.24,144.21,0.65596028]
[1768461099802,0.72353272,144.23,144.21,0.65596028]
[1768461100108,0.72353272,144.23,144.2,4.69018973]
[1768461100311,0.72353272,144.23,144.21,4.03422945]
[1768461101609,7.65655416,144.24,144.21,4.69018973]
[1768461102801,0.72353272,144.23,144.21,4.69018973]
[1768461103918,6.93302144,144.24,144.21,4.69018973]
[1768461104216,7.65655416,144.24,144.21,4.69018973]
[1768461107212,5.17354756,144.23,144.21,4.69018973]
[1768461107418,7.65655416,144.24,144.21,4.69018973]
[1768461107711,5.17355813,144.23,144.21,4.69018973]
[1768461107910,7.65655416,144.24,144.21,4.69018973]
[1768461108115,5.1735569,144.23,144.21,4.69018973]
[1768461108315,7.65655416,144.24,144.21,4.69018973]
[1768461108494,5.17581311,144.23,144.21,4.69018973]
[1768461108696,7.65655416,144.24,144.21,4.69018973]
[1768461108897,5.1756108,144.23,144.21,4.69018973]
[1768461109214,6.93302144,144.24,144.22,4.69018973]
[1768461109410,5.17827397,144.23,144.22,4.69018973]
[1768461109830,7.75606829,144.25,144.22,4.69018973]
[1768461109998,7.75606829,144.25,144.23,0.65596028]
[1768461110201,7.75606829,144.25,144.23,4.66018973]
[1768461110613,7.75606829,144.25,144.23,4.03422945]
[1768461113019,7.75606829,144.25,144.22,4.70871169]
[1768461114726,0.69590355,144.24,144.21,4.70871169]
[1768461115026,0.69590355,144.24,144.21,4.03422945]
[1768461115406,0.69590355,144.24,144.21,2.58176404]
[1768461115929,0.69590355,144.24,144.2,0.67448224]
[1768461116730,0.69590355,144.22,144.17,62.17448224]
[1768461116910,0.69590355,144.22,144.17,3.25624628]
[1768461117219,0.69590355,144.22,144.18,3.25624628]
[1768461119026,0.69590355,144.21,144.18,0.67448224]
[1768461126726,20.26945489,144.23,144.18,0.67448224]
[1768461126918,0.69590355,144.22,144.18,0.67448224]
[1768461127512,0.69590355,144.22,144.19,0.67448224]
[1768461127713,20.26899223,144.24,144.19,0.67448224]
[1768461128110,20.26899223,144.24,144.2,0.67448224]
[1768461129036,0.69590355,144.23,144.2,0.67448224]
[1768461131143,9.61424116,144.25,144.2,0.67448224]
[1768461131431,18.51122107,144.24,144.2,0.67448224]
[1768461131632,13.33590355,144.24,144.2,0.67448224]
[1768461131929,0.69590355,144.23,144.2,0.67448224]
[1768461134321,22.85057676,144.24,144.2,0.67448224]
[1768461134505,22.15467321,144.24,144.2,0.67448224]
[1768461134705,0.69590355,144.23,144.2,0.67448224]
[1768461143944,19.57290917,144.24,144.2,0.67448224]
[1768461143945,20.27485552,144.24,144.2,0.67448224]
[1768461146134,6.93290917,144.24,144.2,0.67448224]
[1768461146335,0.80194635,144.25,144.24,0.65515172]
[1768461146336,7.03254357,144.25,144.24,0.65515172]
[1768461146639,7.03254357,144.25,144.23,0.65515172]
[1768461146640,12.20828214,144.25,144.23,0.65515172]
[1768461146827,7.73448992,144.25,144.23,0.65515172]
[1768461147140,7.73448992,144.25,144.22,0.65515172]
[1768461156940,0.70194635,144.24,144.21,0.65515172]
[1768461165070,0.70194635,144.23,144.2,0.65515172]
[1768461165650,7.63484095,144.24,144.2,0.65515172]
[1768461167879,0.70194635,144.24,144.2,0.65515172]
[1768461168165,7.73450677,144.25,144.21,0.65515172]
[1768461173282,0.65326281,144.24,144.21,0.65515172]
[1768461176074,11.62010752,144.24,144.21,0.65515172]
[1768461176273,7.58628494,144.24,144.21,0.65515172]
[1768461176577,0.65326281,144.24,144.21,0.65515172]
[1768461177874,7.586205,144.24,144.21,0.65515172]
[1768461180797,0.65326281,144.24,144.21,0.65515172]
[1768461183472,7.58618924,144.24,144.21,0.65515172]
[1768461190284,0.65326281,144.23,144.19,0.72070728]
[1768461194598,0.65326281,144.22,144.18,62.22070728]
[1768461194806,0.65326281,144.22,144.18,0.72070728]
[1768461195905,0.65326281,144.21,144.18,0.72070728]
[1768461207211,0.65326281,144.21,144.18,7.65638401]
[1768461212110,0.72144003,144.23,144.19,7.63176979]
[1768461212289,0.82144003,144.25,144.2,0.69658112]
[1768461212495,4.75526261,144.24,144.2,0.69658112]
[1768461212992,0.72144003,144.24,144.2,0.69658112]
[1768461213715,0.72144003,144.24,144.2,7.63135003]
[1768461215015,0.72144003,144.24,144.2,0.69658112]
[1768461215309,0.72144003,144.23,144.18,0.69658112]
[1768461215506,0.72144003,144.22,144.18,7.63202688]
[1768461215901,0.72144003,144.21,144.18,7.63202688]